Cogmind - Beta 11.1 @@@ ROGUE MODE // 2022.09.14 @ 14:01:12 Player: lumberblack Result: Destroyed by S-27 Virus with Autogun Performance ------------- Evolutions (3) 1500 Regions Visited (4) 800 Robots Destroyed (0) 0 Value Destroyed (0) 0 Prototype IDs (1) 20 Alien Tech Used (0) 0 Bonus (834) 834 TOTAL SCORE: 3154 Bonus ------- Pacifist 834 Cogmind --------- Core Integrity 0/700 Matter 225/300 Energy 99/100 System Corruption 0% Temperature Cool (0) Movement Core (50) Location -7/Factory Parts ------- > --- POWER (1) -------- (None) > --- PROPULSION (5) --- (None) > --- UTILITY (5) ------ Improved Signal Interpreter Advanced Terrain Scan Processor System Shield > --- WEAPON (2) ------- (None) > --- INVENTORY (5) ---- Light Treads Light Treads Wheel Compact Wheel Peak State ------------ > --- POWER ------------ Light Deuterium Engine > --- PROPULSION ------- VTOL Module VTOL Module VTOL Module Improved Cesium-ion Thruster > --- UTILITY ---------- Improved Signal Interpreter Improved Terrain Scanner Advanced Terrain Scan Processor Reaction Control System System Shield > --- WEAPON ----------- (None) > --- INVENTORY -------- Light Treads Light Treads Wheel Compact Wheel Improved Terrain Scanner [Rating: 30] Favorites ----------- Power Light Deuterium Engine Engine Light Deuterium Engine Propulsion VTOL Module Flight Unit VTOL Module Utility Advanced Terrain Scan Processor Device Improved Terrain Scanner Processor Advanced Terrain Scan Processor Hackware System Shield Weapon Grenade Launcher Launcher Grenade Launcher Build | -11 -10 -9 -8 -7 ------- Run | Scr Mat Mat Mat Fac Slots Evolved 6 | . . 2 2 2 Power . | . . . . . Propulsion 3 | . . 1 1 1 Utility 3 | . . 1 1 1 Weapon . | . . . . . Parts Attached 13 | . 1 . 4 8 Power 1 | . . . . 1 Engine 1 | . . . . 1 Core . | . . . . . Reactor . | . . . . . Propulsion 5 | . . . 4 1 Treads . | . . . . . Leg . | . . . . . Wheel . | . . . . . Hover . | . . . . . Flight 5 | . . . 4 1 Utility 6 | . . . . 6 Device 3 | . . . . 3 Storage . | . . . . . Processor 2 | . . . . 2 Hackware 1 | . . . . 1 Protection . | . . . . . Artifact . | . . . . . Weapon 1 | . 1 . . . Energy Gun . | . . . . . Energy Cannon . | . . . . . Ballistic Gun . | . . . . . Ballistic Cannon . | . . . . . Launcher 1 | . 1 . . . Special Weapon . | . . . . . Impact Weapon . | . . . . . Slashing Weapon . | . . . . . Piercing Weapon . | . . . . . Special Melee Weapon . | . . . . . Unidentified Prototypes 1 | . . . . 1 Parts Lost 10 | . 1 . . 9 Power 1 | . . . . 1 Propulsion 5 | . . . . 5 Utility 3 | . . . . 3 Weapon 1 | . 1 . . . Highest Loss Streak 9 | . 1 . . 9 To Critical Strikes . | . . . . . Average Slot Usage (%) 25 | . 9 . 16 43 Engine 1 | . . . . 2 Flight 15 | . . . 16 23 Device 1 | . . . . 3 Processor 4 | . . . . 9 Hackware 1 | . . . . 3 Naked Turns 138 | . 17 79 42 . Heaviest Build 7 | . 3 . . 7 Greatest Support 22 | 3 3 3 16 22 Greatest Overweight (x) . | . . . . . Average Overweight (x) . | . . . . . Largest Inventory Capacity 5 | . 5 5 5 5 Average Capacity 5 | . 5 5 5 5 Most Carried 5 | . 5 5 5 5 Average Carried 4 | . 5 5 5 4 Final Capacity 5 | 5 5 5 5 5 Final Carried 5 | 5 5 5 5 4 Class Distribution -------------------- 63% | Mutant 36% | Sprinter Dominant Class ---------------- Mutant | -10/Materials Mutant | -9/Materials Sprinter | -8/Materials Mutant | -7/Factory Resources | -11 -10 -9 -8 -7 ----------- Run | Scr Mat Mat Mat Fac Matter Collected 200 | 200 . . . . Remotely . | . . . . . Salvage Created . | . . . . . Parts . | . . . . . Haulers Intercepted . | . . . . . Recyclers Shooed . | . . . . . Parts Field Recycled . | . . . . . Retrieved Matter . | . . . . . Parts Self-Destructed . | . . . . . Prevented . | . . . . . Kills | -11 -10 -9 -8 -7 ------- Run | Scr Mat Mat Mat Fac Combat Hostiles Destroyed . | . . . . . Classes Destroyed . | . . . . . Best Kill Streak . | . . . . . Combat Bots Only . | . . . . . Max Kills in Single Turn . | . . . . . Gunslinging . | . . . . . Exploded . | . . . . . Melee . | . . . . . Uniques/NPCs Destroyed . | . . . . . Combat | -11 -10 -9 -8 -7 -------- Run | Scr Mat Mat Mat Fac Damage Taken 1619 | . 98 248 239 1034 Core 1194 | . 34 248 211 701 Absorbed by Shields . | . . . . . Core Remaining (%) 71 | 100 86 38 61 . Volleys Fired . | . . . . . Largest . | . . . . . Hottest . | . . . . . Shots Fired . | . . . . . Gun . | . . . . . Cannon . | . . . . . Launcher . | . . . . . Special . | . . . . . Kinetic . | . . . . . Thermal . | . . . . . Explosive . | . . . . . Electromagnetic . | . . . . . Robot Hit Streak . | . . . . . Robot Miss Streak . | . . . . . Penetration Max . | . . . . . Secondary Targets . | . . . . . Shots Hit Robots . | . . . . . Core Hits . | . . . . . Critical Kills . | . . . . . Critical Parts Destroyed . | . . . . . Critical Strikes . | . . . . . Melee Attacks . | . . . . . Impact . | . . . . . Slashing . | . . . . . Piercing . | . . . . . Sneak Attacks . | . . . . . Combat Hostiles . | . . . . . Follow-up Attacks . | . . . . . Damage Inflicted 50 | . . 37 13 . Guns . | . . . . . Cannons . | . . . . . Explosions . | . . . . . Melee . | . . . . . Ramming 50 | . . 37 13 . Kinetic . | . . . . . Thermal . | . . . . . Explosive . | . . . . . Electromagnetic . | . . . . . Impact . | . . . . . Slashing . | . . . . . Piercing . | . . . . . Highest Corruption 4 | . . 4 . . Average Corruption 2 | . . 2 . . Corruption Purged . | . . . . . Corruption Blocked . | . . . . . Effects 1 | . . 1 . . Energy Discharges 1 | . . 1 . . Overload Shots . | . . . . . Overflow Damage . | . . . . . Projectiles . | . . . . . Explosions . | . . . . . Melee . | . . . . . Knockbacks . | . . . . . Impact . | . . . . . Kinetic . | . . . . . Secondary . | . . . . . Self-Inflicted Damage 23 | . . 17 6 . Shots . | . . . . . Rammed 8 | . . 7 1 . Targets Rammed 8 | . . 7 1 . Kicked . | . . . . . Crushed . | . . . . . Highest Temperature 23 | . . . 5 23 Average Temperature 7 | . . . 5 7 Received Heat Transfer 471 | . 57 84 144 186 Siege Activations . | . . . . . Robots Corrupted . | . . . . . Combat Hostiles . | . . . . . Parts Fried . | . . . . . Impact Corruptions . | . . . . . Robots Melted . | . . . . . Combat Hostiles . | . . . . . Parts Melted . | . . . . . Heat Transferred . | . . . . . Parts Sabotaged . | . . . . . Parts Stolen . | . . . . . Parts Stripped . | . . . . . Power Chain Reactions . | . . . . . Missiles Intercepted . | . . . . . Alert | -11 -10 -9 -8 -7 ------- Run | Scr Mat Mat Mat Fac Peak Influence 335 | . 28 45 142 335 Initial 18 | . . 7 18 6 Average 76 | . 9 28 46 126 Maximum Alert Level 1 | . . . . 1 Low Security (%) 84 | . 100 100 100 67 Level 1 15 | . . . . 32 Level 2 . | . . . . . Level 3 . | . . . . . Level 4 . | . . . . . Level 5 . | . . . . . High Security . | . . . . . Max Security . | . . . . . Squads Dispatched 12 | . 1 1 4 6 Investigation 6 | . 1 . 2 3 Extermination . | . . . . . Reinforcement 6 | . . 1 2 3 Assault . | . . . . . Garrison . | . . . . . Intercept . | . . . . . Searches Triggered . | . . . . . Construction Impeded . | . . . . . Haulers Reinforced . | . . . . . Active Scanning Responses . | . . . . . Cargo Convoy Interrupts . | . . . . . Stealth | -11 -10 -9 -8 -7 --------- Run | Scr Mat Mat Mat Fac Distress Signals 3 | . . . 2 1 Communications Jammed . | . . . . . Distress Signals . | . . . . . Times Spotted 77 | . 4 8 22 43 Peak Tracking Total 21 | . 4 7 17 21 Tactical Retreats 8 | . . 1 2 5 Traps | -11 -10 -9 -8 -7 ------- Run | Scr Mat Mat Mat Fac Traps Triggered . | . . . . . Indirectly . | . . . . . Trap Hack Attempts . | . . . . . Triggered . | . . . . . Disarmed . | . . . . . Reprogrammed . | . . . . . Reused . | . . . . . Traps Extracted . | . . . . . Installed . | . . . . . Triggered . | . . . . . Machines | -11 -10 -9 -8 -7 ---------- Run | Scr Mat Mat Mat Fac Machines Disabled . | . . . . . Max in Single Turn . | . . . . . Machines Sabotaged . | . . . . . Garrisons Compromised . | . . . . . Overloaded Fab Kills . | . . . . . Hacking | -11 -10 -9 -8 -7 --------- Run | Scr Mat Mat Mat Fac Machines Accessed 13 | . 2 4 4 3 Terminals 13 | . 2 4 4 3 Fabricators . | . . . . . Repair Stations . | . . . . . Recycling Units . | . . . . . Scanalyzers . | . . . . . Garrison Access . | . . . . . Total Hacks 42 | . 8 13 14 7 Successful 11 | . 2 4 4 1 Failed 31 | . 6 9 10 6 Catastrophic 8 | . 1 1 3 3 Database Lockouts . | . . . . . Manual 37 | . 8 13 14 2 Terminals 42 | . 8 13 14 7 Fabricators . | . . . . . Repair Stations . | . . . . . Recycling Units . | . . . . . Scanalyzers . | . . . . . Garrison Access . | . . . . . Terminal Hacks 8 | . 1 3 3 1 Level Access Points 3 | . 1 1 1 . Terminal Index 3 | . . 1 1 1 Unreport Threat 2 | . . 1 1 . Fabricator Hacks . | . . . . . Repair Station Hacks . | . . . . . Recycling Unit Hacks . | . . . . . Scanalyzer . | . . . . . Garrison Access Hacks . | . . . . . Unauthorized Hacks 3 | . 1 1 1 . Terminals 3 | . 1 1 1 . Botnet 3 | . 1 1 1 . Fabricators . | . . . . . Repair Stations . | . . . . . Recycling Units . | . . . . . Scanalyzers . | . . . . . Garrison Access . | . . . . . Data Cores Recovered . | . . . . . Used . | . . . . . Hacking Detections 13 | . 2 4 4 3 Full Trace Events 8 | . 1 2 2 3 Feedback Events . | . . . . . Feedback Blocked . | . . . . . Robot Schematics Acquired . | . . . . . Robots Built . | . . . . . Authchips . | . . . . . Time . | . . . . . Total Robot Build Rating . | . . . . . Part Schematics Acquired . | . . . . . Parts Built . | . . . . . Authchips . | . . . . . Time . | . . . . . Total Part Build Rating . | . . . . . Parts Repaired . | . . . . . Time . | . . . . . Parts Recycled . | . . . . . Recycled Matter . | . . . . . Retrieved Matter . | . . . . . Retrieved Components . | . . . . . Parts Scanalyzed . | . . . . . Part Schematics Acquired . | . . . . . Parts Damaged . | . . . . . Bothacking | -11 -10 -9 -8 -7 ------------ Run | Scr Mat Mat Mat Fac Used RIF Installer . | . . . . . Robots Hacked . | . . . . . Non-combat . | . . . . . Combat . | . . . . . Robot Hacks Applied . | . . . . . Relay Couplers Released . | . . . . . Fabnet Peak Effective % . | . . . . . Robots Rewired . | . . . . . Allies Hacked . | . . . . . Hacks Repelled . | . . . . . Allies | -11 -10 -9 -8 -7 -------- Run | Scr Mat Mat Mat Fac Total Allies . | . . . . . Largest Group . | . . . . . Highest-Rated Group . | . . . . . Highest-Rated Ally . | . . . . . Total Orders . | . . . . . Ally Attacks . | . . . . . Total Damage . | . . . . . Kills . | . . . . . Allies Corrupted . | . . . . . Allies Melted . | . . . . . Intel | -11 -10 -9 -8 -7 ------- Run | Scr Mat Mat Mat Fac Robot Analysis Total . | . . . . . Derelict Logs Recovered . | . . . . . Drone Launches . | . . . . . Drone Recoveries . | . . . . . Exploration | -11 -10 -9 -8 -7 ------------- Run | Scr Mat Mat Mat Fac Turns Passed 369 | . 33 79 84 173 Spaces Moved 938 | 1 62 144 207 524 Core 371 | 1 62 144 81 83 Treads . | . . . . . Legs . | . . . . . Wheels . | . . . . . Hover . | . . . . . Flight 567 | . . . 126 441 Fastest Speed 23 | 50 50 50 26 23 Average Speed 36 | 50 50 50 36 30 Slowest Speed 50 | 50 50 50 50 50 Overloaded Moves . | . . . . . Propulsion Burnouts . | . . . . . Robots Hopped 18 | . . . 5 13 Cave-ins Triggered . | . . . . . Exploration Rate (%) 21 | 2 20 26 37 22 Regions Visited 4 Branch Regions . Pre-discovered Areas . | . . . . . Known Exits Taken 3 | . 1 1 1 . Unknown Exits Taken 1 | 1 . . . . Scrap Searched . | . . . . . Spaces Dug . | . . . . . Terrain Destroyed . | . . . . . Melee . | . . . . . Projectile . | . . . . . AOE . | . . . . . Terrain Rammed . | . . . . . Walls Destroyed . | . . . . . Machines Disabled . | . . . . . Actions | -11 -10 -9 -8 -7 --------- Run | Scr Mat Mat Mat Fac Total 939 | . 62 150 206 521 Wait . | . . . . . Move 901 | . 61 143 196 501 Hop 15 | . . . 5 10 Pick Up 1 | . . . . 1 Fast Attach 12 | . 1 . 4 7 Attach 1 | . . . . 1 Detach . | . . . . . Swap . | . . . . . Drop 1 | . . . . 1 Fire . | . . . . . Melee . | . . . . . Ram 8 | . . 7 1 . Kick . | . . . . . Crush . | . . . . . Escape Stasis . | . . . . . Rewire . | . . . . . Trap . | . . . . . Miscellaneous . | . . . . . Route ------- -11/Scrapyard -10/Materials (discovered 3 exits: *Mat x3) -9/Materials (discovered 4 exits: *Mat x3 / [*Min]) -8/Materials (discovered 3 exits: *Fac x3) -7/Factory History --------- Turn | Location | Event 1 | -11/Scrapyard | Released all parts (6) 1 | -11/Scrapyard | Discovered new exit (range 0) 1 | -11/Scrapyard | Entered Materials 22 | -10/Materials | Identified exit to Materials 34 | -10/Materials | Entered another Materials area 34 | -9/Materials | Evolved 2 slots: Propulsion x1, Utility x1 52 | -9/Materials | Identified exit to Materials 84 | -9/Materials | Discovered new exit (range 16) 107 | -9/Materials | Core integrity fell below 50% 113 | -9/Materials | Entered another Materials area 113 | -8/Materials | Evolved 2 slots: Propulsion x1, Utility x1 189 | -8/Materials | Identified exit to Factory 197 | -8/Materials | Entered Factory 197 | -7/Factory | Evolved 2 slots: Propulsion x1, Utility x1 340 | -7/Factory | Core integrity fell below 50% 344 | -7/Factory | Core integrity fell below 20% 366 | -7/Factory | Lost 9 parts (1p5n3u) 370 | -7/Factory | Destroyed by S-27 Virus with Autogun Last Messages --------------- 00298_ VTOL Module destroyed. 00301_ Lgt. Deuterium Engine destroyed. 00308_ P-60 Hacker resets K-01 Serf, system corruption cleaned. 00311_ VTOL Module destroyed. 00311_ Reaction Control System destroyed. 00313_ K-01 Serf cleans the Matter Pump. 00318_ Imp. Terrain Scanner destroyed. 00324_ VTOL Module destroyed. 00326_ Imp. Cesium-ion Thruster destroyed. 00328_ VTOL Module destroyed. 00335_ K-01 Serf cleans the Matter Pump. 00335_ Imp. Terrain Scanner destroyed. 00341_ Critical hit (Burn: +37). 00342_ K-01 Serf collects debris. 00343_ K-01 Serf cleans the Assembly Bed. 00347_ K-01 Serf cleans the Terminal. 00351_ K-01 Serf cleans the Assembly Bed. 00357_ K-01 Serf collects debris. 00357_ K-01 Serf cleans the Assembly Bed. 00368_ O-16 Technician: "IFF HANDSHAKE FAILED. SECURING TERMINAL." Map ----- +----------------------------------------------------+ | #???# /// #?????????????????????????? | | # #???# /// #?????????????????????????? | | # ##### #?????????????????????????? | | # # * #?????????????????????????? | | # # #?????????????????????????? | | # / #?????????????????????????? | | # # #?????????????????????????? | | # # #?????????????????????????? | | #########+#### #?????????????????????????? | | ??????? ?# #?????????????????????????? | | ????? # #?????????????????????????? | | ????# # #?????????????????????????? | | ????# # #?????????????????????????? | | ????# ####/##/###?????????????????????????? | | ????# #??# #???????????????????????????? | | ????# #??# #######?????????????????????? | | ????# #??# #?????????????????????? | | ????# #??# #?????????????????????? | | ????##########??# ss ####??????????????????? | | ######??????????+ """"s +??????????????????? | | #??????????# """" s ####??????????????????? | | #??????????# """" #?????????????????????? | | ???????????# #?????????????????????? | | """????????????# """" #?????????????????????? | | """????????????# """" #?????????????????????? | | """ #??????????# """" @!#?????????????????????? | | #??????????# #?????????????????????? | | """ ???????????# """" #?????????????????????? | | ""?????????????# """" ?????????????????????? | | """ #??????????#u """" #????????????????????? | | #??????????# #????????????????????? | | #??????????# +????????????????????? | | ######??????????????" o #????????????????????? | | ????????????????????T ????????????????????? | | ????????????????????" ????????????????????? | | ???????????????????? ????????????????????? | | ???????????????????? r ???????????????????? | | ?????????????????????#########???????????????????? | | ?????????????????????????????????????????????????? | | ?????????????????????????????????????????????????? | | ?????????????????????????????????????????????????? | | ?????????????????????????????????????????????????? | | ?????????????????????????????????????????????????? | | ?????????????????????????????????????????????????? | | ?????????????????????????????????????????????????? | | ?????????????????????????????????????????????????? | | ?????????????????????????????????????????????????? | | ?????????????????????????????????????????????????? | | ?????????????????????????????????????????????????? | | ?????????????????????????????????????????????????? | +----------------------------------------------------+ Best States ------------- Heat Dissipation 34 Energy Generation 14 Energy Capacity 140 Matter Stores 300 Matter Capacity 300 Sight Range 16 Terrain Scan Range 16 Terrain Scan Density 210 Evasion (%) 73 Defensive Hacking 10 Item Schematics ----------------- None Robot Schematics ------------------ None Fabricated ------------ Nothing Alien Tech Used ----------------- None Achievements -------------- None Challenges ------------ None Game ------ Seed GuidedPointStripper Manual? 0 Play Time 00:12:59 Cumulative 396.9 hours Start 2022.09.14 @ 13:50:22 End 2022.09.14 @ 14:01:12 Sessions 1 Manual Loads 0 Difficulty Rogue Special Mode None Game No. 416 Rogue 416 Adventurer 0 Explorer 0 Win Type - Total 8 Types 5/1/2/0/0/0/0/0/0 Lore% 58 Gallery% 78 Achievement% 65 Wizard Run 0 Options --------- ASCII 0 Keyboard 0 Movement Numpad Keybinds 0 Fullscreen 2 Font 18/TerminusBold Map View 76x50 Tactical HUD 1 Map Filters NONE Filters NONE Steam 1 RUN: bed7ed76-d1f4-4f57-829a-e754198bf542